bitfinex/quotes_SOLUSD_20230110
["timestamp","ask_amount","ask_price","bid_price","bid_amount"]
[1673355151963,46.99,15.966,15.951,20.0]
[1673355152178,46.99,15.966,15.952,128.9236]
[1673355153008,115.0543,15.967,15.952,175.9536]
[1673355153231,17.0,15.966,15.952,175.9536]
[1673355153646,162.0443,15.967,15.952,175.9536]
[1673355155005,17.0,15.966,15.952,175.9536]
[1673355157327,17.0,15.966,15.952,155.9536]
[1673355157538,17.0,15.966,15.952,108.9236]
[1673355158064,46.99,15.967,15.952,155.9536]
[1673355158380,46.98,15.969,15.953,20.0]
[1673355158572,20.0,15.969,15.955,20.0]
[1673355159107,20.0,15.969,15.954,47.03]
[1673355159954,17.0,15.968,15.954,47.03]
[1673355161312,46.74,15.97,15.955,20.0]
[1673355161530,20.0,15.969,15.956,47.02]
[1673355163839,17.0,15.968,15.956,47.02]
[1673355164497,20.0,15.969,15.958,20.0]
[1673355164714,20.0,15.969,15.958,67.01]
[1673355164921,20.0,15.969,15.959,17.0]
[1673355165320,20.0,15.969,15.956,47.02]
[1673355165636,20.0,15.969,15.957,17.0]
[1673355165844,20.0,15.969,15.958,47.01]
[1673355166056,26.74,15.97,15.958,47.01]
[1673355166269,158.7748,15.979,15.959,20.0]
[1673355166489,20.0,15.975,15.961,20.0]
[1673355166707,20.0,15.975,15.962,47.0]
[1673355167224,46.96,15.977,15.962,47.0]
[1673355167423,20.0,15.978,15.962,47.0]
[1673355167631,20.0,15.978,15.963,20.0]
[1673355167845,20.0,15.978,15.964,47.0]
[1673355168478,20.0,15.978,15.962,47.0]
[1673355169544,17.0,15.977,15.962,47.0]
[1673355170263,20.0,15.976,15.962,47.0]
[1673355170578,17.0,15.975,15.962,47.0]
[1673355170789,20.0,15.978,15.962,47.0]
[1673355171646,66.95,15.978,15.962,47.0]
[1673355171839,66.95,15.978,15.961,47.0]
[1673355171840,20.0,15.978,15.961,47.0]
[1673355172490,17.0,15.977,15.961,47.0]
[1673355172679,17.0,15.977,15.962,17.0]
[1673355172894,17.0,15.977,15.963,47.0]
[1673355174679,17.0,15.977,15.964,20.0]
[1673355174896,17.0,15.977,15.965,46.99]
[1673355175111,17.0,15.978,15.965,46.99]
[1673355175747,111.8248,15.979,15.965,46.99]
[1673355176889,20.0,15.978,15.965,46.99]
[1673355177112,17.0,15.977,15.965,46.99]
[1673355177644,17.0,15.978,15.965,46.99]
[1673355178992,17.0,15.978,15.966,17.0]
[1673355182796,20.0,15.977,15.966,17.0]
[1673355183112,20.0,15.977,15.964,47.0]
[1673355183312,20.0,15.977,15.965,17.0]
[1673355183516,20.0,15.977,15.966,46.99]
[1673355184043,37.0,15.978,15.966,46.99]
[1673355187240,20.0,15.977,15.966,46.99]
[1673355188071,37.0,15.978,15.966,46.99]
[1673355189752,37.0,15.978,15.964,47.0]
[1673355191313,20.0,15.977,15.964,47.0]
[1673355191531,20.0,15.977,15.962,47.0]
[1673355191853,20.0,15.977,15.963,20.0]
[1673355192051,20.0,15.977,15.964,47.0]
[1673355192262,17.0,15.976,15.962,47.0]
[1673355193438,17.0,15.976,15.963,20.0]
[1673355193633,17.0,15.976,15.964,47.0]
[1673355194777,14.7,15.976,15.962,47.0]
[1673355194995,14.7,15.976,15.963,20.0]
[1673355195203,14.7,15.976,15.964,47.0]
[1673355201530,14.7,15.976,15.965,20.0]
[1673355201833,111.8248,15.979,15.965,20.0]
[1673355203200,17.0,15.978,15.965,20.0]
[1673355204776,17.0,15.978,15.966,46.99]
[1673355205099,111.8248,15.979,15.966,46.99]
[1673355205431,20.0,15.978,15.966,46.99]
[1673355209727,20.0,15.978,15.964,47.0]
[1673355209728,17.0,15.977,15.964,47.0]
[1673355210256,17.0,15.977,15.965,20.0]
[1673355211847,17.0,15.978,15.965,20.0]
[1673355212458,17.0,15.978,15.966,17.0]
[1673355216887,20.0,15.977,15.966,17.0]
[1673355217204,17.0,15.978,15.966,20.0]
[1673355217737,46.95,15.981,15.967,17.0]
[1673355218044,20.0,15.98,15.968,20.0]
[1673355218362,20.0,15.98,15.969,17.0]
[1673355218673,20.0,15.981,15.969,17.0]
[1673355220775,20.0,15.979,15.966,66.99]
[1673355220966,17.0,15.978,15.966,46.99]
[1673355221181,20.0,15.979,15.965,46.99]
[1673355221393,17.0,15.978,15.965,20.0]
[1673355224474,17.0,15.978,15.964,47.0]
[1673355225524,20.0,15.976,15.96,238.1004]
[1673355225737,63.96,15.975,15.961,20.0]
[1673355225944,20.0,15.974,15.961,20.0]
[1673355226158,17.0,15.973,15.961,20.0]
[1673355227296,26.71,15.97,15.954,67.03]
[1673355227511,46.98,15.969,15.954,67.03]
[1673355227722,20.0,15.967,15.954,67.03]
[1673355228051,20.0,15.967,15.954,47.03]
[1673355228256,63.99,15.966,15.953,133.2299]
[1673355228678,17.0,15.966,15.953,133.2299]
[1673355228878,17.0,15.966,15.953,180.2599]
[1673355229504,46.98,15.969,15.955,20.0]
[1673355229714,17.0,15.968,15.955,20.0]
[1673355234458,17.0,15.968,15.953,180.2599]
[1673355234679,17.0,15.968,15.952,47.03]
[1673355234991,17.0,15.968,15.951,20.0]
[1673355234992,67.83059199,15.967,15.951,20.0]
[1673355235305,0.84125628,15.965,15.949,67.04]
[1673355235512,0.84125628,15.962,15.95,20.0]
[1673355235716,17.84125628,15.962,15.95,20.0]
[1673355236345,17.84125628,15.962,15.951,47.03]
[1673355236346,17.0,15.961,15.951,47.03]
[1673355236556,0.84125628,15.962,15.951,47.03]
[1673355236984,0.84125628,15.962,15.951,20.0]
[1673355238666,0.84125628,15.962,15.95,67.04]
[1673355238878,0.84125628,15.962,15.951,20.0]
[1673355239907,0.84125628,15.964,15.951,20.0]
[1673355241062,20.0,15.965,15.951,20.0]
[1673355241282,17.0,15.964,15.951,20.0]
[1673355242116,17.0,15.964,15.952,110.1734]
[1673355242321,20.0,15.963,15.95,67.04]
[1673355242537,17.81639564,15.962,15.95,20.0]
[1673355242762,17.81639564,15.962,15.949,67.04]
[1673355245602,17.81639564,15.962,15.95,20.0]
[1673355245814,17.0,15.962,15.951,20.0]
[1673355246648,0.74562546,15.961,15.951,20.0]
[1673355246866,26.56,15.96,15.949,20.0]
[1673355247081,85.25650989,15.959,15.942,159.1078]
[1673355247405,105.25650989,15.959,15.944,136.61276796]
[1673355248027,1.40436584,15.957,15.944,118.7299]
[1673355248242,48.42436584,15.957,15.944,118.7299]
[1673355248460,17.0,15.956,15.944,118.7299]
[1673355248669,1.44041721,15.955,15.944,118.7299]
[1673355249178,21.44041721,15.955,15.944,118.7299]
[1673355249392,17.0,15.954,15.944,118.7299]
[1673355249600,1.45036679,15.953,15.944,118.7299]
[1673355250658,1.45036679,15.953,15.942,112.0478]
[1673355253588,1.45036679,15.953,15.943,47.06]
[1673355253927,20.0,15.959,15.945,20.0]
[1673355254263,20.0,15.959,15.946,64.05]
[1673355254448,20.0,15.962,15.946,81.93286796]
[1673355254767,20.0,15.961,15.947,20.0]
[1673355254974,37.0,15.96,15.948,47.04]
[1673355259925,155.976,15.964,15.949,57.0]
[1673355260112,17.0,15.963,15.95,47.04]
[1673355260445,17.0,15.963,15.951,20.0]
[1673355260643,17.0,15.963,15.952,47.03]
[1673355260848,17.0,15.963,15.952,160.498]
[1673355262444,20.0,15.962,15.952,160.498]
[1673355262647,17.0,15.961,15.952,160.498]
[1673355262843,17.0,15.961,15.952,47.03]
[1673355263052,26.56,15.96,15.947,20.0]
[1673355263272,26.56,15.96,15.94,26.85]
[1673355263273,67.01,15.959,15.944,162.1408]
[1673355263600,84.01,15.959,15.944,115.0908]
[1673355264001,20.74199331,15.958,15.944,115.0908]
[1673355264212,0.76707065,15.956,15.944,115.0908]
[1673355264630,17.0,15.957,15.944,115.0908]
[1673355267697,17.0,15.957,15.945,20.0]
[1673355268838,17.0,15.958,15.945,20.0]
[1673355271267,20.0,15.957,15.945,20.0]
[1673355271462,17.0,15.956,15.944,115.0908]
[1673355271670,0.75839744,15.955,15.944,115.0908]
[1673355272089,17.0,15.956,15.944,115.0908]
[1673355272300,0.80262274,15.955,15.944,115.0908]
[1673355272511,20.80262274,15.955,15.944,115.0908]
[1673355272720,0.80262274,15.953,15.944,115.0908]
[1673355272930,17.0,15.954,15.944,115.0908]
[1673355273561,17.0,15.955,15.944,115.0908]
[1673355273994,0.81484973,15.954,15.944,115.0908]
[1673355274188,17.0,15.955,15.944,115.0908]
[1673355275145,17.0,15.955,15.945,20.0]
[1673355275358,17.0,15.956,15.944,115.0908]
[1673355275575,17.0,15.956,15.945,20.0]
[1673355277023,17.0,15.956,15.945,67.05]
[1673355277659,17.0,15.957,15.945,67.05]
[1673355283136,17.0,15.958,15.945,67.05]
[1673355285791,20.0,15.957,15.945,67.05]
[1673355285998,17.0,15.956,15.945,67.05]
[1673355287468,40.0,15.959,15.945,67.05]
[1673355287677,17.0,15.958,15.945,67.05]
[1673355290202,20.0,15.959,15.945,67.05]
[1673355292824,20.0,15.958,15.945,47.05]
[1673355293029,37.0,15.958,15.945,47.05]
[1673355295764,37.0,15.958,15.944,115.0908]
[1673355296841,37.0,15.958,15.945,20.0]
[1673355297141,37.0,15.958,15.946,47.05]
[1673355297355,37.0,15.958,15.945,67.05]
[1673355298200,37.0,15.958,15.945,47.05]
[1673355298407,37.0,15.958,15.944,162.1408]
[1673355298829,37.0,15.958,15.944,115.0908]
[1673355302178,37.0,15.958,15.945,20.0]
[1673355302713,37.0,15.958,15.944,115.0908]
[1673355303139,37.0,15.958,15.945,20.0]
[1673355305007,37.0,15.958,15.945,67.05]
[1673355306197,37.0,15.958,15.945,47.05]
[1673355306384,37.0,15.958,15.944,162.1408]
[1673355307768,37.0,15.958,15.945,20.0]
[1673355307996,17.0,15.958,15.945,20.0]
[1673355309119,17.0,15.958,15.944,162.1408]
[1673355309332,20.0,15.957,15.944,162.1408]
[1673355309643,17.0,15.956,15.945,20.0]
[1673355309853,17.0,15.958,15.945,20.0]
[1673355310062,20.0,15.957,15.944,162.1408]
[1673355310285,17.0,15.956,15.944,115.0908]
[1673355310921,20.0,15.954,15.944,115.0908]
[1673355311137,17.0,15.953,15.944,115.0908]
[1673355313866,0.8527478,15.952,15.937,67.08]
[1673355314076,20.0,15.949,15.937,47.08]
[1673355314267,0.87769862,15.947,15.937,47.08]
[1673355314915,17.0,15.948,15.937,47.08]
[1673355316188,0.79046601,15.947,15.937,47.08]
[1673355317556,0.79046601,15.947,15.934,47.08]
[1673355318801,20.79046601,15.947,15.934,47.08]
[1673355319222,17.0,15.946,15.934,47.08]
[1673355319431,0.81374995,15.945,15.934,47.08]
[1673355319642,0.81374995,15.945,15.933,47.09]
[1673355320288,20.81374995,15.945,15.932,113.9799]
[1673355320498,17.0,15.944,15.932,113.9799]
[1673355320815,1.31273794,15.943,15.932,113.9799]
[1673355322816,1.31273794,15.943,15.933,20.0]
[1673355323011,1.31273794,15.943,15.932,113.9799]
[1673355323539,1.31273794,15.943,15.929,67.1]
[1673355323747,21.31273794,15.943,15.93,20.0]
[1673355323962,1.31273794,15.941,15.93,20.0]
[1673355325545,1.31273794,15.941,15.93,40.0]
[1673355326169,1.31273794,15.941,15.93,20.0]
[1673355327117,1.31273794,15.941,15.93,40.0]
[1673355327851,1.31273794,15.943,15.931,20.0]
[1673355328257,1.31273794,15.944,15.931,20.0]
[1673355328470,1.31273794,15.944,15.931,67.09]
[1673355329540,18.31273794,15.944,15.931,66.09]
[1673355331111,18.31273794,15.944,15.931,47.09]
[1673355331725,18.31273794,15.944,15.932,20.0]
[1673355331939,18.31273794,15.944,15.931,47.09]
[1673355332149,18.31273794,15.944,15.93,129.9924]
[1673355332358,18.31273794,15.944,15.931,20.0]
[1673355332890,47.04,15.949,15.932,47.09]
[1673355333120,47.04,15.949,15.933,20.0]
[1673355333317,73.88,15.95,15.934,64.08]
[1673355333534,20.0,15.949,15.935,20.0]
[1673355333717,20.0,15.949,15.936,47.08]
[1673355333927,20.0,15.949,15.937,20.0]
[1673355334573,17.0,15.948,15.937,20.0]
[1673355336788,17.0,15.948,15.936,161.4929]
[1673355337021,17.0,15.948,15.936,114.4129]
[1673355337339,17.0,15.948,15.937,20.0]
[1673355341330,17.0,15.948,15.936,161.4929]
[1673355341522,17.0,15.948,15.936,114.4129]
[1673355341727,64.04,15.948,15.931,67.09]
[1673355341955,20.0,15.947,15.931,47.09]
[1673355342158,20.0,15.947,15.93,129.9924]
[1673355342159,64.05,15.946,15.93,129.9924]
[1673355342484,1.00305833,15.939,15.926,47.11]
[1673355342674,85.07305833,15.939,15.924,155.6886]
[1673355342889,20.0,15.938,15.924,155.6886]
[1673355343115,1.23267791,15.936,15.924,155.6886]
[1673355343931,1.23267791,15.936,15.924,108.5786]
[1673355344566,21.23267791,15.936,15.924,108.5786]
[1673355344776,1.23267791,15.934,15.924,108.5786]
[1673355349426,1.23267791,15.934,15.921,47.12]
[1673355349740,1.23267791,15.934,15.92,94.2962]
[1673355349741,26.56,15.93,15.92,94.2962]
[1673355349932,57.0,15.929,15.915,67.14]
[1673355350784,40.0,15.929,15.915,67.14]
[1673355350996,20.0,15.929,15.915,67.14]
[1673355351199,43.30346555,15.939,15.915,67.14]
[1673355351421,0.90210847,15.936,15.917,20.0]
[1673355351632,20.0,15.938,15.918,47.13]
[1673355351851,20.0,15.938,15.92,20.0]
[1673355352156,20.0,15.936,15.921,67.12]
[1673355352779,20.0,15.936,15.922,20.0]
[1673355352988,17.0,15.935,15.923,47.12]
[1673355353208,17.0,15.935,15.922,47.12]
[1673355353824,20.0,15.934,15.921,137.8035]
[1673355354153,17.0,15.933,15.922,20.0]
[1673355354341,64.08,15.935,15.922,20.0]
[1673355355081,64.08,15.935,15.921,137.8035]
[1673355355293,20.0,15.934,15.921,137.8035]
[1673355355720,17.0,15.933,15.921,137.8035]
[1673355356441,26.71,15.93,15.918,47.13]
[1673355356670,26.71,15.93,15.896,109.89747075]
[1673355356671,37.0,15.929,15.915,113.7448]
[1673355356869,20.0,15.928,15.916,67.14]
[1673355358250,37.0,15.929,15.916,67.14]
[1673355360066,20.0,15.928,15.916,47.14]
[1673355361633,17.0,15.927,15.915,113.7448]
[1673355361836,20.0,15.926,15.915,113.7448]
[1673355362047,17.0,15.925,15.915,113.7448]
[1673355364776,17.0,15.925,15.91,47.16]
[1673355364981,64.11,15.925,15.91,161.3792]
[1673355365200,20.0,15.924,15.91,161.3792]
[1673355365415,26.71,15.92,15.909,47.16]
[1673355365626,40.0,15.919,15.907,47.16]
[1673355365823,17.0,15.918,15.905,161.3892]
[1673355367417,17.0,15.917,15.905,161.3892]
[1673355367731,17.0,15.917,15.906,5.18545614]
[1673355367732,20.0,15.917,15.906,5.18545614]
[1673355368138,17.0,15.916,15.906,5.18545614]
[1673355368554,20.0,15.915,15.906,5.18545614]
[1673355368774,17.0,15.914,15.906,5.18545614]
[1673355371103,20.0,15.913,15.906,5.614e-05]
[1673355371411,1.45213582,15.91,15.906,5.614e-05]
[1673355371731,1.45213582,15.908,15.906,5.614e-05]
[1673355372131,133.6876,15.919,15.906,5.614e-05]
[1673355372342,0.74261152,15.918,15.906,5.614e-05]
[1673355372558,0.77353984,15.914,15.906,5.614e-05]
[1673355373285,47.91353984,15.914,15.906,5.614e-05]
[1673355373518,40.0,15.913,15.906,5.614e-05]
[1673355373710,0.05994386,15.903,15.894,47.2]
[1673355374881,0.05994386,15.903,15.892,47.21]
[1673355375505,0.05994386,15.903,15.897,20.0]
[1673355375727,0.05994386,15.903,15.892,47.21]
[1673355376146,0.05994386,15.903,15.897,20.0]
[1673355376344,0.05994386,15.903,15.892,47.21]
[1673355376547,0.05994386,15.903,15.891,67.21]
[1673355377490,26.71,15.9,15.89,1.2]
[1673355377705,67.19,15.899,15.89,1.2]
[1673355377916,17.0,15.898,15.89,1.2]
[1673355378147,47.19,15.897,15.89,1.2]
[1673355378348,17.0,15.896,15.89,1.2]
[1673355378665,20.0,15.895,15.89,1.2]
[1673355378877,17.0,15.894,15.89,1.2]
[1673355379292,47.19,15.899,15.89,1.2]
[1673355379695,0.05994386,15.903,15.89,1.2]
[1673355379696,0.05994386,15.903,15.891,47.21]
[1673355380017,0.05994386,15.903,15.892,20.0]
[1673355380226,0.05994386,15.903,15.893,47.21]
[1673355380438,0.05994386,15.903,15.892,20.0]
[1673355380658,0.05994386,15.903,15.893,47.21]
[1673355380863,0.05994386,15.903,15.894,20.0]
[1673355382341,1.76070387,15.908,15.894,20.0]
[1673355382559,1.76070387,15.909,15.895,64.2]
[1673355382766,1.76070387,15.909,15.895,81.75561823]
[1673355382991,1.76070387,15.909,15.896,17.55561823]
[1673355383206,26.89,15.91,15.897,47.19]
[1673355383397,20.0,15.909,15.897,47.19]
[1673355383615,0.82407501,15.908,15.895,47.2]
[1673355384137,17.82407501,15.908,15.895,47.2]
[1673355384556,20.9814054,15.907,15.893,47.21]
[1673355384778,17.0,15.906,15.894,20.0]
[1673355384969,144.9118,15.92,15.9,26.73]
[1673355385181,144.9118,15.92,15.901,64.18]
[1673355385391,20.0,15.919,15.902,20.0]
[1673355385600,20.0,15.919,15.903,47.18]
[1673355385912,20.0,15.919,15.904,17.0]
[1673355386123,20.0,15.922,15.905,47.17]
[1673355386334,20.0,15.922,15.907,20.0]
[1673355386542,20.0,15.922,15.908,64.16]
[1673355387087,20.0,15.922,15.908,81.71561823]
[1673355387279,20.0,15.924,15.909,20.0]
[1673355387491,20.0,15.924,15.91,84.16]
[1673355388747,20.0,15.925,15.91,101.71561823]
[1673355388958,20.0,15.925,15.911,20.0]
[1673355389167,20.0,15.925,15.912,47.15]
[1673355389421,20.0,15.926,15.911,47.15]
[1673355389807,20.0,15.926,15.912,37.0]
[1673355390017,20.0,15.926,15.913,47.15]
[1673355390229,20.0,15.927,15.914,17.0]
[1673355390440,20.0,15.927,15.915,47.14]
[1673355390762,37.70924447,15.914,15.912,112.5864]
[1673355390982,37.70924447,15.914,15.911,17.55561823]
[1673355392953,37.70924447,15.914,15.912,17.0]
[1673355393585,37.70924447,15.914,15.912,34.55561823]
[1673355394231,37.70924447,15.914,15.913,47.15]
[1673355394442,37.70924447,15.914,15.913,64.15]
[1673355394631,4.447e-05,15.914,15.913,64.15]
[1673355395072,4.447e-05,15.914,15.913,84.15]
[1673355395505,4.447e-05,15.914,15.913,119.26123646]
[1673355396020,4.447e-05,15.914,15.913,101.70561823]
[1673355397576,4.447e-05,15.914,15.913,54.55561823]
[1673355397993,4.447e-05,15.914,15.913,101.70561823]
[1673355399582,20.0,15.929,15.914,20.0]
[1673355399786,20.0,15.929,15.915,47.14]
[1673355399994,47.1,15.93,15.915,64.69561823]
[1673355400217,20.0,15.934,15.917,20.0]
[1673355400540,20.0,15.934,15.919,20.0]
[1673355400744,20.0,15.934,15.92,67.13]
[1673355400934,20.0,15.934,15.921,20.0]
[1673355401255,20.0,15.934,15.923,20.0]
[1673355401676,20.0,15.934,15.922,64.67561823]
[1673355401888,47.09,15.933,15.92,116.9589]
[1673355402117,20.0,15.932,15.921,20.0]
[1673355402325,47.09,15.931,15.921,20.0]
[1673355402959,47.09,15.931,15.915,47.14]
[1673355403146,83.73,15.93,15.914,67.14]
[1673355403356,47.1,15.929,15.914,20.0]
[1673355403581,20.0,15.927,15.914,20.0]
[1673355403884,67.1,15.927,15.914,20.0]
[1673355404092,20.0,15.927,15.914,20.0]
[1673355404322,67.1,15.927,15.914,20.0]
[1673355406110,67.1,15.927,15.915,17.0]
[1673355406512,67.1,15.927,15.913,129.2654]
[1673355406739,17.0,15.926,15.913,129.2654]
[1673355406947,47.11,15.925,15.913,129.2654]
[1673355407659,47.11,15.926,15.913,129.2654]
[1673355407869,47.11,15.926,15.915,20.0]
[1673355408088,47.1,15.927,15.915,20.0]
[1673355408846,47.1,15.927,15.916,17.0]
[1673355410721,47.1,15.928,15.916,17.0]
[1673355412203,20.0,15.927,15.916,17.0]
[1673355412393,20.0,15.927,15.911,64.70561823]
[1673355412394,72.77614368,15.912,15.91,76.11552486]
[1673355412603,26.84,15.92,15.904,119.3555]
[1673355412818,26.84,15.92,15.903,112.8582]
[1673355413023,26.84,15.92,15.905,20.0]
[1673355413261,26.84,15.92,15.906,47.17]
[1673355413573,26.84,15.92,15.907,20.0]
[1673355413761,26.84,15.92,15.908,17.0]
[1673355413972,26.84,15.92,15.91,20.0]
[1673355414188,26.84,15.92,15.911,20.0]
[1673355415333,20.0,15.929,15.911,20.0]
[1673355415334,47.1,15.928,15.912,47.15]
[1673355415568,47.1,15.928,15.912,285.38531823]
[1673355415796,20.0,15.93,15.912,327.6317264]
[1673355416094,47.1,15.929,15.914,20.0]
[1673355416288,47.1,15.929,15.915,47.14]
[1673355416499,47.1,15.929,15.915,81.69561823]
[1673355416708,47.1,15.929,15.916,20.0]
[1673355416918,47.1,15.929,15.917,17.0]
[1673355420503,67.1,15.93,15.917,17.0]
[1673355420711,47.08,15.934,15.918,17.55561823]
[1673355421027,117.3525,15.936,15.92,20.0]
[1673355421234,117.3525,15.936,15.921,67.12]
[1673355421430,117.3525,15.936,15.922,17.0]
[1673355421640,117.3525,15.936,15.923,67.12]
[1673355421850,117.3525,15.936,15.924,20.0]
[1673355422287,117.3525,15.936,15.923,47.12]
[1673355422497,117.3525,15.936,15.922,47.12]
[1673355422712,47.08,15.935,15.921,134.9789]
[1673355423023,20.0,15.934,15.921,134.9789]
[1673355423235,64.09,15.933,15.92,117.9859]
[1673355423459,26.84,15.93,15.912,158.4626]
[1673355423673,67.1,15.929,15.912,225.2978]
[1673355423861,17.0,15.928,15.912,225.2978]
[1673355424071,67.1,15.927,15.912,225.2978]
[1673355424591,20.0,15.926,15.912,225.2978]
[1673355424802,64.11,15.925,15.912,225.2978]
[1673355425561,64.11,15.925,15.912,111.3126]
[1673355425745,20.0,15.924,15.912,111.3126]
[1673355425960,26.72,15.92,15.912,111.3126]
[1673355426284,26.72,15.92,15.906,161.1552]
[1673355426494,26.72,15.92,15.906,178.71081823]
[1673355426704,26.72,15.92,15.907,20.0]
[1673355426909,26.72,15.92,15.908,47.16]
[1673355427238,26.72,15.92,15.909,20.0]
[1673355427432,17.0,15.919,15.909,20.0]
[1673355427642,20.0,15.918,15.907,20.0]
[1673355427853,20.0,15.918,15.905,47.17]
[1673355428065,67.13,15.918,15.905,47.17]
[1673355428496,20.0,15.918,15.906,17.0]
[1673355428709,20.0,15.918,15.904,61.9242]
[1673355428919,20.0,15.918,15.905,17.0]
[1673355429863,64.13,15.919,15.905,17.0]
[1673355430497,47.13,15.919,15.905,37.0]
[1673355430911,26.72,15.92,15.906,84.72561823]
[1673355431243,26.72,15.92,15.907,20.0]
[1673355431764,26.72,15.92,15.908,17.0]
[1673355431948,26.72,15.92,15.909,20.0]
[1673355432814,26.72,15.92,15.91,17.0]
[1673355433010,26.72,15.92,15.911,20.0]
[1673355433964,47.13,15.919,15.911,20.0]
[1673355434381,47.13,15.919,15.905,20.0]
[1673355434701,20.0,15.918,15.905,20.0]
[1673355434896,47.13,15.917,15.905,20.0]
[1673355435966,47.13,15.919,15.906,17.0]
[1673355437857,20.0,15.917,15.904,81.9242]
[1673355438048,67.13,15.917,15.905,20.0]
[1673355438695,47.13,15.917,15.906,17.0]
[1673355438892,47.13,15.919,15.907,20.0]
[1673355439219,47.12,15.922,15.908,17.0]
[1673355439449,37.0,15.921,15.908,17.0]
[1673355439742,47.13,15.92,15.908,17.0]
[1673355439958,20.0,15.919,15.908,17.0]
[1673355441640,47.13,15.92,15.908,17.0]
[1673355441955,47.12,15.922,15.91,20.0]
[1673355442141,47.11,15.925,15.911,37.0]
[1673355442353,47.11,15.925,15.911,54.55561823]
[1673355442558,112.3199,15.926,15.912,47.15]
[1673355442773,47.1,15.928,15.912,47.15]
[1673355442774,47.1,15.928,15.913,20.0]
[1673355443097,581.98671597,15.976,15.913,20.0]
[1673355443098,47.1,15.929,15.914,64.14]
[1673355443308,47.09,15.932,15.915,1.92]
[1673355443636,47.09,15.932,15.916,47.14]
[1673355443826,67.08,15.935,15.918,20.0]
[1673355444152,47.08,15.935,15.92,20.0]
[1673355444370,47.08,15.935,15.921,37.0]
[1673355444766,47.07,15.938,15.923,20.0]
[1673355444981,47.07,15.938,15.924,17.0]
[1673355450043,47.06,15.942,15.925,85.62561823]
[1673355450259,35.36608469,15.943,15.926,37.0]
[1673355450464,116.3081,15.944,15.927,68.06]
[1673355450680,116.3081,15.944,15.929,20.0]
[1673355450892,116.3081,15.944,15.93,64.1]
[1673355451102,47.04,15.948,15.931,20.0]
[1673355451433,47.04,15.948,15.932,20.0]
[1673355451647,20.0,15.95,15.934,20.0]
[1673355451843,47.04,15.949,15.934,20.0]
[1673355452054,47.04,15.949,15.935,17.0]
[1673355452262,67.04,15.95,15.935,64.08]